[Event "Titled Tuesday Blitz July 25 Early 2023"]
[White "Kushagra Mohan"]
[Black "Kopczynski, Michal"]
[WhiteFideId "25033638"]
[BlackFideId "1124200"]
[WhiteElo "2874"]
[BlackElo "2466"]
[Result "1-0"]
[Round "1"]
[TimeControl "180+2"]
[Date "2023.07.25"]
[WhiteClock "0:00:17"]
[BlackClock "0:00:03"]
[Board "44"]

1. e4 {[%clk 0:02:57]}  c5 {[%clk 0:02:59]} 2. Nf3 {[%clk 0:02:57]}  d6 {[%clk 0:03:00]} 3. d4 {[%clk 0:02:57]}  cxd4 {[%clk 0:03:00]} 4. Nxd4 {[%clk 0:02:57]}  Nf6 {[%clk 0:03:01]} 5. Nc3 {[%clk 0:02:58]}  g6 {[%clk 0:03:02]} 6. Be3 {[%clk 0:02:57]}  Bg7 {[%clk 0:03:02]} 7. f3 {[%clk 0:02:58]}  O-O {[%clk 0:03:03]} 8. Qd2 {[%clk 0:02:58]}  Nc6 {[%clk 0:03:03]} 9. O-O-O {[%clk 0:02:59]}  d5 {[%clk 0:03:04]} 10. exd5 {[%clk 0:02:57]}  Nxd5 {[%clk 0:03:04]} 11. Nxc6 {[%clk 0:02:58]}  bxc6 {[%clk 0:03:05]} 12. Bd4 {[%clk 0:02:58]}  e5 {[%clk 0:03:06]} 13. Bc5 {[%clk 0:02:59]}  Be6 {[%clk 0:03:07]} 14. Ne4 {[%clk 0:02:58]}  Re8 {[%clk 0:02:57]} 15. h4 {[%clk 0:02:58]}  h6 {[%clk 0:02:56]} 16. h5 {[%clk 0:02:57]}  g5 {[%clk 0:02:55]} 17. g4 {[%clk 0:02:57]}  Rb8 {[%clk 0:02:38]} 18. Bc4 {[%clk 0:02:56]}  Nf4 {[%clk 0:02:26]} 19. Bxe6 {[%clk 0:02:51]}  Nxe6 {[%clk 0:02:24]} 20. Qxd8 {[%clk 0:02:49]}  Rexd8 {[%clk 0:02:16]} 21. Bxa7 {[%clk 0:02:41]}  Ra8 {[%clk 0:02:09]} 22. Rxd8+ {[%clk 0:02:38]}  Nxd8 {[%clk 0:02:10]} 23. Rd1 {[%clk 0:02:34]}  Ne6 {[%clk 0:02:03]} 24. Rd7 {[%clk 0:02:30]}  Nf4 {[%clk 0:02:02]} 25. a4 {[%clk 0:02:25]}  Bf8 {[%clk 0:01:54]} 26. a5 {[%clk 0:02:24]}  Bb4 {[%clk 0:01:45]} 27. a6 {[%clk 0:02:23]}  Ba5 {[%clk 0:01:45]} 28. Rb7 {[%clk 0:02:19]}  Kg7 {[%clk 0:01:40]} 29. Nd6 {[%clk 0:02:10]}  Kf6 {[%clk 0:01:03]} 30. Nc4 {[%clk 0:02:03]}  Bd8 {[%clk 0:00:59]} 31. Nd6 {[%clk 0:01:56]}  Ke6 {[%clk 0:00:46]} 32. Ne4 {[%clk 0:01:53]}  Be7 {[%clk 0:00:43]} 33. c3 {[%clk 0:01:35]}  Nd3+ {[%clk 0:00:39]} 34. Kc2 {[%clk 0:01:35]}  Ne1+ {[%clk 0:00:39]} 35. Kd1 {[%clk 0:01:32]}  Nxf3 {[%clk 0:00:40]} 36. Ke2 {[%clk 0:01:32]}  Nh2 {[%clk 0:00:39]} 37. Bc5 {[%clk 0:01:27]}  Bxc5 {[%clk 0:00:37]} 38. Nxc5+ {[%clk 0:01:28]}  Kd5 {[%clk 0:00:37]} 39. b4 {[%clk 0:01:26]}  Nxg4 {[%clk 0:00:35]} 40. Rxf7 {[%clk 0:01:25]}  e4 {[%clk 0:00:29]} 41. a7 {[%clk 0:01:21]}  Ne5 {[%clk 0:00:28]} 42. Na6 {[%clk 0:01:12]}  Kc4 {[%clk 0:00:27]} 43. Rb7 {[%clk 0:01:10]}  Nd3 {[%clk 0:00:16]} 44. Nc7 {[%clk 0:01:09]}  Rxa7 {[%clk 0:00:16]} 45. Rxa7 {[%clk 0:01:09]}  Kxc3 {[%clk 0:00:16]} 46. b5 {[%clk 0:00:59]}  cxb5 {[%clk 0:00:15]} 47. Nxb5+ {[%clk 0:01:00]}  Kc4 {[%clk 0:00:16]} 48. Nd6+ {[%clk 0:00:58]}  Kd4 {[%clk 0:00:16]} 49. Nf5+ {[%clk 0:00:55]}  Ke5 {[%clk 0:00:15]} 50. Ra5+ {[%clk 0:00:54]}  Kf6 {[%clk 0:00:13]} 51. Nxh6 {[%clk 0:00:54]}  Nf4+ {[%clk 0:00:13]} 52. Ke3 {[%clk 0:00:53]}  Nxh5 {[%clk 0:00:14]} 53. Ng4+ {[%clk 0:00:53]}  Kg6 {[%clk 0:00:13]} 54. Kxe4 {[%clk 0:00:53]}  Ng3+ {[%clk 0:00:13]} 55. Kf3 {[%clk 0:00:51]}  Nf5 {[%clk 0:00:14]} 56. Ne3 {[%clk 0:00:51]}  Nd4+ {[%clk 0:00:12]} 57. Kg4 {[%clk 0:00:49]}  Kf6 {[%clk 0:00:08]} 58. Ra6+ {[%clk 0:00:47]}  Ke5 {[%clk 0:00:07]} 59. Kxg5 {[%clk 0:00:46]}  Ke4 {[%clk 0:00:08]} 60. Ng4 {[%clk 0:00:41]}  Nf3+ {[%clk 0:00:08]} 61. Kh5 {[%clk 0:00:41]}  Kf4 {[%clk 0:00:09]} 62. Rf6+ {[%clk 0:00:40]}  Kg3 {[%clk 0:00:09]} 63. Rg6 {[%clk 0:00:38]}  Kf4 {[%clk 0:00:09]} 64. Nh6 {[%clk 0:00:36]}  Ke4 {[%clk 0:00:08]} 65. Rg8 {[%clk 0:00:36]}  Ne5 {[%clk 0:00:08]} 66. Re8 {[%clk 0:00:36]}  Kf4 {[%clk 0:00:07]} 67. Rf8+ {[%clk 0:00:34]}  Ke4 {[%clk 0:00:07]} 68. Ng4 {[%clk 0:00:32]}  Nc6 {[%clk 0:00:05]} 69. Kg5 {[%clk 0:00:32]}  Kd5 {[%clk 0:00:05]} 70. Kf4 {[%clk 0:00:30]}  Nd4 {[%clk 0:00:04]} 71. Rd8+ {[%clk 0:00:30]}  Kc4 {[%clk 0:00:05]} 72. Ke4 {[%clk 0:00:29]}  Ne6 {[%clk 0:00:04]} 73. Ne3+ {[%clk 0:00:27]}  Kb5 {[%clk 0:00:04]} 74. Rd6 {[%clk 0:00:26]}  Nc5+ {[%clk 0:00:04]} 75. Kd5 {[%clk 0:00:25]}  Nd3 {[%clk 0:00:03]} 76. Kd4 {[%clk 0:00:23]}  Nb4 {[%clk 0:00:03]} 77. Rh6 {[%clk 0:00:18]}  Nc6+ {[%clk 0:00:03]} 78. Kc3 {[%clk 0:00:18]}  Kc5 {[%clk 0:00:02]} 79. Rh5+ {[%clk 0:00:18]}  Kd6 {[%clk 0:00:02]} 80. Nc4+ {[%clk 0:00:18]}  Kc7 {[%clk 0:00:02]} 81. Rh6 {[%clk 0:00:17]}  Kc8 {[%clk 0:00:03]} 82. Rxc6+ {[%clk 0:00:17]} 1-0


[Site "https://www.chess.com"]

[Event "Titled Tuesday Blitz July 25 Early 2023"]
[White "Molenda, Marcin"]
[Black "Harsha Bharathakoti"]
[WhiteFideId "1173065"]
[BlackFideId "5078776"]
[WhiteElo "2466"]
[BlackElo "2872"]
[Result "0-1"]
[Round "1"]
[TimeControl "180+2"]
[Date "2023.07.25"]
[WhiteClock "0:00:06"]
[BlackClock "0:00:19"]
[Board "45"]

1. e4 {[%clk 0:03:00]}  c6 {[%clk 0:02:54]} 2. Nf3 {[%clk 0:02:44]}  d5 {[%clk 0:02:54]} 3. d3 {[%clk 0:02:43]}  Qc7 {[%clk 0:02:51]} 4. Nbd2 {[%clk 0:02:40]}  e5 {[%clk 0:02:48]} 5. g3 {[%clk 0:02:39]}  Nf6 {[%clk 0:02:44]} 6. Bg2 {[%clk 0:02:39]}  Bd6 {[%clk 0:02:39]} 7. O-O {[%clk 0:02:37]}  O-O {[%clk 0:02:38]} 8. c3 {[%clk 0:02:37]}  Re8 {[%clk 0:02:35]} 9. Qc2 {[%clk 0:02:28]}  a5 {[%clk 0:02:33]} 10. Re1 {[%clk 0:02:25]}  Na6 {[%clk 0:02:25]} 11. Nf1 {[%clk 0:02:17]}  h6 {[%clk 0:02:19]} 12. Ne3 {[%clk 0:02:15]}  dxe4 {[%clk 0:01:51]} 13. dxe4 {[%clk 0:02:15]}  Nc5 {[%clk 0:01:52]} 14. Nc4 {[%clk 0:02:11]}  Bf8 {[%clk 0:01:51]} 15. a4 {[%clk 0:02:06]}  Be6 {[%clk 0:01:16]} 16. Bf1 {[%clk 0:01:57]}  Nfd7 {[%clk 0:00:44]} 17. Ne3 {[%clk 0:01:50]}  Nb3 {[%clk 0:00:40]} 18. Rb1 {[%clk 0:01:46]}  Nb6 {[%clk 0:00:39]} 19. c4 {[%clk 0:01:28]}  Nxc1 {[%clk 0:00:32]} 20. Rbxc1 {[%clk 0:01:29]}  Bc5 {[%clk 0:00:30]} 21. b3 {[%clk 0:01:25]}  g6 {[%clk 0:00:29]} 22. Bg2 {[%clk 0:01:13]}  Rad8 {[%clk 0:00:28]} 23. h3 {[%clk 0:01:09]}  Kg7 {[%clk 0:00:26]} 24. Ng4 {[%clk 0:01:09]}  Nd7 {[%clk 0:00:25]} 25. Red1 {[%clk 0:00:53]}  h5 {[%clk 0:00:25]} 26. Ne3 {[%clk 0:00:51]}  Bxe3 {[%clk 0:00:25]} 27. fxe3 {[%clk 0:00:52]}  Nc5 {[%clk 0:00:24]} 28. Qc3 {[%clk 0:00:48]}  f6 {[%clk 0:00:24]} 29. Nh4 {[%clk 0:00:45]}  b6 {[%clk 0:00:21]} 30. Kh2 {[%clk 0:00:42]}  Rd7 {[%clk 0:00:20]} 31. Rxd7+ {[%clk 0:00:41]}  Qxd7 {[%clk 0:00:21]} 32. Rf1 {[%clk 0:00:38]}  Rd8 {[%clk 0:00:19]} 33. b4 {[%clk 0:00:28]}  Nxa4 {[%clk 0:00:08]} 34. Qa3 {[%clk 0:00:28]}  b5 {[%clk 0:00:03]} 35. cxb5 {[%clk 0:00:27]}  cxb5 {[%clk 0:00:04]} 36. bxa5 {[%clk 0:00:28]}  Qd6 {[%clk 0:00:03]} 37. Qa1 {[%clk 0:00:19]}  Nc5 {[%clk 0:00:02]} 38. Rc1 {[%clk 0:00:16]}  Bc4 {[%clk 0:00:02]} 39. Qc3 {[%clk 0:00:09]}  Qd2 {[%clk 0:00:03]} 40. Qxd2 {[%clk 0:00:08]}  Rxd2 {[%clk 0:00:04]} 41. Ra1 {[%clk 0:00:09]}  Nb3 {[%clk 0:00:04]} 42. Ra3 {[%clk 0:00:09]}  Nc5 {[%clk 0:00:02]} 43. a6 {[%clk 0:00:09]}  Rd8 {[%clk 0:00:02]} 44. a7 {[%clk 0:00:10]}  Ra8 {[%clk 0:00:02]} 45. Nf3 {[%clk 0:00:08]}  Ne6 {[%clk 0:00:02]} 46. Nd2 {[%clk 0:00:08]}  Nd8 {[%clk 0:00:02]} 47. Nxc4 {[%clk 0:00:08]}  bxc4 {[%clk 0:00:03]} 48. Bf1 {[%clk 0:00:08]}  Nc6 {[%clk 0:00:04]} 49. Bxc4 {[%clk 0:00:08]}  Rxa7 {[%clk 0:00:05]} 50. Rxa7+ {[%clk 0:00:08]}  Nxa7 {[%clk 0:00:06]} 51. Kg2 {[%clk 0:00:08]}  Kf8 {[%clk 0:00:06]} 52. Kf2 {[%clk 0:00:09]}  g5 {[%clk 0:00:07]} 53. h4 {[%clk 0:00:08]}  Kg7 {[%clk 0:00:06]} 54. Ke2 {[%clk 0:00:08]}  Nc8 {[%clk 0:00:07]} 55. Kd2 {[%clk 0:00:08]}  Ne7 {[%clk 0:00:08]} 56. Be6 {[%clk 0:00:08]}  gxh4 {[%clk 0:00:08]} 57. gxh4 {[%clk 0:00:08]}  Ng6 {[%clk 0:00:09]} 58. Ke2 {[%clk 0:00:07]}  Nxh4 {[%clk 0:00:10]} 59. Kf2 {[%clk 0:00:07]}  Ng6 {[%clk 0:00:10]} 60. Kg3 {[%clk 0:00:07]}  Kh6 {[%clk 0:00:11]} 61. Bf7 {[%clk 0:00:07]}  Ne7 {[%clk 0:00:11]} 62. Be6 {[%clk 0:00:07]}  Kg5 {[%clk 0:00:11]} 63. Bd7 {[%clk 0:00:07]}  Ng6 {[%clk 0:00:11]} 64. Be6 {[%clk 0:00:07]}  Nf8 {[%clk 0:00:11]} 65. Bf5 {[%clk 0:00:08]}  Ng6 {[%clk 0:00:11]} 66. Be6 {[%clk 0:00:07]}  Ne7 {[%clk 0:00:07]} 67. Bd7 {[%clk 0:00:05]}  f5 {[%clk 0:00:05]} 68. exf5 {[%clk 0:00:05]}  Nxf5+ {[%clk 0:00:06]} 69. Kf3 {[%clk 0:00:05]}  Nd6 {[%clk 0:00:06]} 70. Be6 {[%clk 0:00:05]}  Kf6 {[%clk 0:00:07]} 71. Bd5 {[%clk 0:00:04]}  Kf5 {[%clk 0:00:07]} 72. Bc6 {[%clk 0:00:05]}  h4 {[%clk 0:00:07]} 73. Bd7+ {[%clk 0:00:05]}  Kg5 {[%clk 0:00:08]} 74. Be6 {[%clk 0:00:05]}  Kf6 {[%clk 0:00:08]} 75. Bd7 {[%clk 0:00:05]}  Kg5 {[%clk 0:00:08]} 76. Be6 {[%clk 0:00:05]}  Nf5 {[%clk 0:00:09]} 77. Bc8 {[%clk 0:00:05]}  h3 {[%clk 0:00:08]} 78. Bd7 {[%clk 0:00:03]}  e4+ {[%clk 0:00:06]} 79. Kf2 {[%clk 0:00:02]}  Kg4 {[%clk 0:00:03]} 80. Be6 {[%clk 0:00:02]}  Kg5 {[%clk 0:00:03]} 81. Bd7 {[%clk 0:00:03]}  h2 {[%clk 0:00:02]} 82. Kg2 {[%clk 0:00:02]}  Nxe3+ {[%clk 0:00:02]} 83. Kxh2 {[%clk 0:00:03]}  Nf5 {[%clk 0:00:02]} 84. Kg2 {[%clk 0:00:02]}  Nd4 {[%clk 0:00:02]} 85. Kf2 {[%clk 0:00:02]}  Kf4 {[%clk 0:00:02]} 86. Bc8 {[%clk 0:00:01]}  e3+ {[%clk 0:00:03]} 87. Ke1 {[%clk 0:00:02]}  Nf3+ {[%clk 0:00:04]} 88. Kf1 {[%clk 0:00:02]}  Nd4 {[%clk 0:00:05]} 89. Ba6 {[%clk 0:00:02]}  Ke4 {[%clk 0:00:05]} 90. Ke1 {[%clk 0:00:02]}  Nf3+ {[%clk 0:00:05]} 91. Kf1 {[%clk 0:00:03]}  Kf4 {[%clk 0:00:05]} 92. Kg2 {[%clk 0:00:02]}  Ng5 {[%clk 0:00:06]} 93. Kf1 {[%clk 0:00:02]}  Ne4 {[%clk 0:00:07]} 94. Ke2 {[%clk 0:00:03]}  Ng3+ {[%clk 0:00:08]} 95. Ke1 {[%clk 0:00:03]}  Kf3 {[%clk 0:00:09]} 96. Bb7+ {[%clk 0:00:03]}  Ne4 {[%clk 0:00:10]} 97. Ba6 {[%clk 0:00:04]}  Kf4 {[%clk 0:00:10]} 98. Bb7 {[%clk 0:00:05]}  Nc5 {[%clk 0:00:11]} 99. Bc6 {[%clk 0:00:05]}  Ke5 {[%clk 0:00:12]} 100. Bb5 {[%clk 0:00:05]}  Kd4 {[%clk 0:00:13]} 101. Ke2 {[%clk 0:00:06]}  Nb3 {[%clk 0:00:13]} 102. Ba6 {[%clk 0:00:06]}  Nc1+ {[%clk 0:00:14]} 103. Ke1 {[%clk 0:00:06]}  Na2 {[%clk 0:00:15]} 104. Ke2 {[%clk 0:00:06]}  Nb4 {[%clk 0:00:15]} 105. Bb5 {[%clk 0:00:06]}  Nd5 {[%clk 0:00:16]} 106. Ba6 {[%clk 0:00:07]}  Nf4+ {[%clk 0:00:17]} 107. Ke1 {[%clk 0:00:07]}  Kc3 {[%clk 0:00:18]} 108. Kf1 {[%clk 0:00:06]}  Kd2 {[%clk 0:00:18]} 109. Bb5 {[%clk 0:00:06]}  Nd5 {[%clk 0:00:18]} 110. Kg2 {[%clk 0:00:06]}  Nb4 {[%clk 0:00:18]} 111. Kf3 {[%clk 0:00:06]}  Nd3 {[%clk 0:00:19]} 0-1


[Site "https://www.chess.com"]

[Event "Titled Tuesday Blitz July 25 Early 2023"]
[White "Moroni, Luca Jr"]
[Black "ExchangeAB"]
[WhiteFideId "865834"]
[WhiteElo "2868"]
[BlackElo "2463"]
[Result "1-0"]
[Round "1"]
[TimeControl "180+2"]
[Date "2023.07.25"]
[WhiteClock "0:00:19"]
[BlackClock "0:00:16"]
[Board "46"]

1. b3 {[%clk 0:02:58]}  d5 {[%clk 0:02:58]} 2. Bb2 {[%clk 0:02:59]}  Nf6 {[%clk 0:02:58]} 3. Nf3 {[%clk 0:02:57]}  Bf5 {[%clk 0:02:58]} 4. g3 {[%clk 0:02:57]}  e6 {[%clk 0:02:59]} 5. Bg2 {[%clk 0:02:57]}  h6 {[%clk 0:02:59]} 6. O-O {[%clk 0:02:57]}  c6 {[%clk 0:02:59]} 7. d3 {[%clk 0:02:57]}  Nbd7 {[%clk 0:02:59]} 8. Nbd2 {[%clk 0:02:57]}  Bh7 {[%clk 0:02:59]} 9. c4 {[%clk 0:02:57]}  Be7 {[%clk 0:02:59]} 10. Ne5 {[%clk 0:02:54]}  O-O {[%clk 0:02:57]} 11. Nxd7 {[%clk 0:02:54]}  Nxd7 {[%clk 0:02:58]} 12. Rc1 {[%clk 0:02:53]}  Bf6 {[%clk 0:02:58]} 13. d4 {[%clk 0:02:50]}  Re8 {[%clk 0:02:54]} 14. e4 {[%clk 0:02:50]}  dxe4 {[%clk 0:02:54]} 15. Nxe4 {[%clk 0:02:50]}  Bxe4 {[%clk 0:02:53]} 16. Bxe4 {[%clk 0:02:51]}  Rb8 {[%clk 0:02:44]} 17. Qd2 {[%clk 0:02:42]}  c5 {[%clk 0:02:37]} 18. Rcd1 {[%clk 0:02:36]}  Qc7 {[%clk 0:02:35]} 19. Bb1 {[%clk 0:02:21]}  Bxd4 {[%clk 0:02:32]} 20. Bxd4 {[%clk 0:02:22]}  cxd4 {[%clk 0:02:32]} 21. Qxd4 {[%clk 0:02:23]}  Nf6 {[%clk 0:02:32]} 22. Qxa7 {[%clk 0:02:19]}  Red8 {[%clk 0:02:25]} 23. Qe3 {[%clk 0:02:17]}  Qa5 {[%clk 0:02:18]} 24. Qe2 {[%clk 0:02:07]}  Kf8 {[%clk 0:02:15]} 25. Be4 {[%clk 0:01:58]}  Rxd1 {[%clk 0:01:51]} 26. Rxd1 {[%clk 0:01:57]}  Nxe4 {[%clk 0:01:40]} 27. Qxe4 {[%clk 0:01:57]}  Qxa2 {[%clk 0:01:39]} 28. Rd7 {[%clk 0:01:21]}  Kg8 {[%clk 0:01:23]} 29. Rxb7 {[%clk 0:01:14]}  Rd8 {[%clk 0:01:05]} 30. Kg2 {[%clk 0:01:08]}  Qa8 {[%clk 0:00:48]} 31. Qf3 {[%clk 0:01:01]}  f5 {[%clk 0:00:40]} 32. c5 {[%clk 0:00:57]}  Qc8 {[%clk 0:00:34]} 33. b4 {[%clk 0:00:52]}  Rd3 {[%clk 0:00:26]} 34. Rxg7+ {[%clk 0:00:51]}  Kxg7 {[%clk 0:00:24]} 35. Qxd3 {[%clk 0:00:50]}  Qb7+ {[%clk 0:00:25]} 36. c6 {[%clk 0:00:37]}  Qxc6+ {[%clk 0:00:23]} 37. Qf3 {[%clk 0:00:38]}  Qb5 {[%clk 0:00:20]} 38. Qc3+ {[%clk 0:00:37]}  Kg6 {[%clk 0:00:20]} 39. h4 {[%clk 0:00:37]}  Qd5+ {[%clk 0:00:19]} 40. Kh2 {[%clk 0:00:35]}  f4 {[%clk 0:00:18]} 41. Qc2+ {[%clk 0:00:31]}  Kg7 {[%clk 0:00:17]} 42. Qb2+ {[%clk 0:00:31]}  Kg6 {[%clk 0:00:17]} 43. b5 {[%clk 0:00:31]}  fxg3+ {[%clk 0:00:17]} 44. fxg3 {[%clk 0:00:32]}  Qb7 {[%clk 0:00:16]} 45. Qc2+ {[%clk 0:00:30]}  Kf6 {[%clk 0:00:16]} 46. Qf2+ {[%clk 0:00:26]}  Kg6 {[%clk 0:00:16]} 47. b6 {[%clk 0:00:21]}  Qc6 {[%clk 0:00:16]} 48. Qb2 {[%clk 0:00:20]}  Kf5 {[%clk 0:00:16]} 49. b7 {[%clk 0:00:19]} 1-0


[Site "https://www.chess.com"]

[Event "Titled Tuesday Blitz July 25 Early 2023"]
[White "LangesNasenhaar"]
[Black "Harsh Suresh"]
[BlackFideId "45018464"]
[WhiteElo "2462"]
[BlackElo "2863"]
[Result "1-0"]
[Round "1"]
[TimeControl "180+2"]
[Date "2023.07.25"]
[WhiteClock "0:00:08"]
[BlackClock "0:00:11"]
[Board "47"]

1. d4 {[%clk 0:02:57]}  g6 {[%clk 0:02:50]} 2. Nc3 {[%clk 0:02:57]}  Nf6 {[%clk 0:02:46]} 3. e4 {[%clk 0:02:57]}  d5 {[%clk 0:02:46]} 4. Bg5 {[%clk 0:02:58]}  Nxe4 {[%clk 0:02:43]} 5. Nxe4 {[%clk 0:02:57]}  dxe4 {[%clk 0:02:44]} 6. Qd2 {[%clk 0:02:57]}  Bg7 {[%clk 0:02:41]} 7. O-O-O {[%clk 0:02:57]}  Qd5 {[%clk 0:02:28]} 8. c4 {[%clk 0:02:47]}  Qd8 {[%clk 0:02:24]} 9. Ne2 {[%clk 0:02:43]}  Nc6 {[%clk 0:02:20]} 10. h3 {[%clk 0:02:34]}  h6 {[%clk 0:02:03]} 11. Be3 {[%clk 0:02:33]}  e5 {[%clk 0:01:53]} 12. d5 {[%clk 0:02:30]}  Ne7 {[%clk 0:01:53]} 13. Nc3 {[%clk 0:02:24]}  f5 {[%clk 0:01:52]} 14. g3 {[%clk 0:02:09]}  c6 {[%clk 0:01:23]} 15. Kb1 {[%clk 0:02:02]}  cxd5 {[%clk 0:01:17]} 16. cxd5 {[%clk 0:02:02]}  Bd7 {[%clk 0:01:17]} 17. Bc4 {[%clk 0:01:48]}  Nc8 {[%clk 0:00:20]} 18. d6 {[%clk 0:01:44]}  Nb6 {[%clk 0:00:21]} 19. Bb3 {[%clk 0:01:38]}  Bc6 {[%clk 0:00:20]} 20. h4 {[%clk 0:01:32]}  Qd7 {[%clk 0:00:18]} 21. h5 {[%clk 0:01:15]}  g5 {[%clk 0:00:17]} 22. g4 {[%clk 0:01:10]}  f4 {[%clk 0:00:16]} 23. Bc5 {[%clk 0:01:08]}  Qxg4 {[%clk 0:00:12]} 24. Bxb6 {[%clk 0:00:55]}  axb6 {[%clk 0:00:12]} 25. Nd5 {[%clk 0:00:56]}  Bxd5 {[%clk 0:00:06]} 26. Qxd5 {[%clk 0:00:46]}  O-O-O {[%clk 0:00:06]} 27. Qxe4 {[%clk 0:00:45]}  Qd7 {[%clk 0:00:05]} 28. Rd3 {[%clk 0:00:37]}  Kb8 {[%clk 0:00:05]} 29. Qg6 {[%clk 0:00:31]}  Bf8 {[%clk 0:00:05]} 30. Rc1 {[%clk 0:00:21]}  Bxd6 {[%clk 0:00:04]} 31. Rcd1 {[%clk 0:00:15]}  Qe7 {[%clk 0:00:02]} 32. Rxd6 {[%clk 0:00:15]}  Rxd6 {[%clk 0:00:03]} 33. Rxd6 {[%clk 0:00:14]}  e4 {[%clk 0:00:03]} 34. Re6 {[%clk 0:00:14]}  Qc5 {[%clk 0:00:03]} 35. a3 {[%clk 0:00:14]}  Qxf2 {[%clk 0:00:03]} 36. Qf6 {[%clk 0:00:13]}  Rc8 {[%clk 0:00:03]} 37. Rxb6 {[%clk 0:00:09]}  Qe1+ {[%clk 0:00:02]} 38. Ka2 {[%clk 0:00:09]}  Qa5 {[%clk 0:00:03]} 39. Qd6+ {[%clk 0:00:08]}  Ka8 {[%clk 0:00:03]} 40. Rb4 {[%clk 0:00:08]}  Qc7 {[%clk 0:00:01]} 41. Qxh6 {[%clk 0:00:06]}  e3 {[%clk 0:00:01]} 42. Ra4+ {[%clk 0:00:07]}  Kb8 {[%clk 0:00:02]} 43. Qxg5 {[%clk 0:00:05]}  e2 {[%clk 0:00:02]} 44. Re4 {[%clk 0:00:06]}  f3 {[%clk 0:00:02]} 45. Qe3 {[%clk 0:00:05]}  Qc6 {[%clk 0:00:01]} 46. h6 {[%clk 0:00:05]}  Rd8 {[%clk 0:00:01]} 47. h7 {[%clk 0:00:05]}  Qc7 {[%clk 0:00:02]} 48. Re8 {[%clk 0:00:04]}  Rxe8 {[%clk 0:00:01]} 49. Qxe8+ {[%clk 0:00:04]}  Qc8 {[%clk 0:00:02]} 50. h8=Q {[%clk 0:00:04]}  Qxe8 {[%clk 0:00:03]} 51. Qxe8+ {[%clk 0:00:05]}  Ka7 {[%clk 0:00:04]} 52. Qe5 {[%clk 0:00:05]}  f2 {[%clk 0:00:03]} 53. Qd4+ {[%clk 0:00:06]}  Ka6 {[%clk 0:00:03]} 54. Qxf2 {[%clk 0:00:07]}  e1=Q {[%clk 0:00:04]} 55. Qxe1 {[%clk 0:00:07]}  b5 {[%clk 0:00:04]} 56. Bd5 {[%clk 0:00:08]}  Kb6 {[%clk 0:00:04]} 57. Qe6+ {[%clk 0:00:08]}  Kc5 {[%clk 0:00:04]} 58. Qc6+ {[%clk 0:00:08]}  Kd4 {[%clk 0:00:05]} 59. Qxb5 {[%clk 0:00:08]}  Ke5 {[%clk 0:00:05]} 60. Bc4+ {[%clk 0:00:08]}  Kd4 {[%clk 0:00:06]} 61. a4 {[%clk 0:00:08]}  Ke3 {[%clk 0:00:07]} 62. a5 {[%clk 0:00:09]}  Kd4 {[%clk 0:00:08]} 63. a6 {[%clk 0:00:10]}  Ke3 {[%clk 0:00:09]} 64. a7 {[%clk 0:00:10]}  Kd2 {[%clk 0:00:10]} 65. a8=Q {[%clk 0:00:10]}  Kc2 {[%clk 0:00:10]} 66. Qc8 {[%clk 0:00:09]}  Kc1 {[%clk 0:00:11]} 67. Be6+ {[%clk 0:00:09]}  Kd2 {[%clk 0:00:12]} 68. Qd5+ {[%clk 0:00:09]}  Ke3 {[%clk 0:00:13]} 69. Bd7 {[%clk 0:00:09]}  Kf4 {[%clk 0:00:14]} 70. Qf8+ {[%clk 0:00:09]}  Kg3 {[%clk 0:00:12]} 71. Qdg8+ {[%clk 0:00:08]}  Kh4 {[%clk 0:00:11]} 72. Qh6# {[%clk 0:00:08]} 1-0


[Site "https://www.chess.com"]

[Event "Titled Tuesday Blitz July 25 Early 2023"]
[White "Ljukin, Sergei"]
[Black "Bernadskiy, Vitaliy"]
[WhiteFideId "14102200"]
[BlackFideId "14100371"]
[WhiteElo "2458"]
[BlackElo "2860"]
[Result "0-1"]
[Round "1"]
[TimeControl "180+2"]
[Date "2023.07.25"]
[WhiteClock "0:00:10"]
[BlackClock "0:00:56"]
[Board "49"]

1. e4 {[%clk 0:02:55]}  c5 {[%clk 0:02:58]} 2. Nf3 {[%clk 0:02:55]}  d6 {[%clk 0:02:59]} 3. d4 {[%clk 0:02:55]}  cxd4 {[%clk 0:03:00]} 4. Nxd4 {[%clk 0:02:56]}  Nf6 {[%clk 0:03:00]} 5. Nc3 {[%clk 0:02:56]}  g6 {[%clk 0:03:01]} 6. Be3 {[%clk 0:02:56]}  Nc6 {[%clk 0:03:01]} 7. f3 {[%clk 0:02:55]}  h5 {[%clk 0:03:01]} 8. Qd2 {[%clk 0:02:55]}  Nxd4 {[%clk 0:03:01]} 9. Bxd4 {[%clk 0:02:55]}  Bh6 {[%clk 0:03:02]} 10. Be3 {[%clk 0:02:51]}  Bxe3 {[%clk 0:03:02]} 11. Qxe3 {[%clk 0:02:51]}  Be6 {[%clk 0:03:02]} 12. Bd3 {[%clk 0:02:47]}  Qa5 {[%clk 0:03:00]} 13. O-O {[%clk 0:02:43]}  Rc8 {[%clk 0:02:59]} 14. Kh1 {[%clk 0:02:42]}  a6 {[%clk 0:02:52]} 15. f4 {[%clk 0:02:40]}  Qc5 {[%clk 0:02:45]} 16. Qd2 {[%clk 0:02:35]}  h4 {[%clk 0:02:38]} 17. f5 {[%clk 0:02:28]}  Nh5 {[%clk 0:02:25]} 18. Rf2 {[%clk 0:01:54]}  gxf5 {[%clk 0:02:15]} 19. exf5 {[%clk 0:01:51]}  Ng3+ {[%clk 0:01:59]} 20. Kg1 {[%clk 0:01:49]}  Nxf5 {[%clk 0:01:40]} 21. Ne4 {[%clk 0:01:40]}  Qe3 {[%clk 0:01:35]} 22. Qxe3 {[%clk 0:01:32]}  Nxe3 {[%clk 0:01:36]} 23. Re1 {[%clk 0:01:19]}  Ng4 {[%clk 0:01:36]} 24. Rf4 {[%clk 0:01:19]}  Ne5 {[%clk 0:01:35]} 25. Ng5 {[%clk 0:01:08]}  Nxd3 {[%clk 0:01:30]} 26. cxd3 {[%clk 0:01:05]}  Bxa2 {[%clk 0:01:30]} 27. Ra4 {[%clk 0:00:49]}  Bd5 {[%clk 0:01:25]} 28. Rd4 {[%clk 0:00:49]}  Rc5 {[%clk 0:01:24]} 29. b4 {[%clk 0:00:49]}  Rb5 {[%clk 0:01:24]} 30. Ne4 {[%clk 0:00:33]}  Bxe4 {[%clk 0:01:17]} 31. Rexe4 {[%clk 0:00:33]}  Kd7 {[%clk 0:01:11]} 32. Rxh4 {[%clk 0:00:33]}  Rxh4 {[%clk 0:00:59]} 33. Rxh4 {[%clk 0:00:33]}  Rd5 {[%clk 0:01:00]} 34. Rf4 {[%clk 0:00:20]}  f6 {[%clk 0:00:59]} 35. d4 {[%clk 0:00:17]}  Rb5 {[%clk 0:00:58]} 36. h4 {[%clk 0:00:17]}  Ke8 {[%clk 0:00:58]} 37. h5 {[%clk 0:00:10]}  Rxh5 {[%clk 0:00:56]} 0-1


[Site "https://www.chess.com"]